lending/lending_fUSD_20241025
["ID","MTS","AMOUNT","RATE_DAILY","PERIOD"]
[340814928,1729869033152,-179.15249269,0.0006,106]
[340814929,1729869033162,-252.7,0.00060472,2]
[340814930,1729869033171,-500.0,0.00060478,120]
[340814931,1729869033181,-500.0,0.00060533,120]
[340814932,1729869033190,-500.0,0.00060537,120]
[340814933,1729869033199,-500.0,0.00060585,120]
[340814934,1729869033208,-500.0,0.0006112,120]
[340814935,1729869033218,-500.0,0.00061185,120]
[340814936,1729869033228,-1000.0,0.00061348,120]
[340814937,1729869033237,-500.0,0.00061714,120]
[340814938,1729869033247,-177.8425,0.00061756,2]
[340814939,1729869033256,-1500.0,0.000619,90]
[340814940,1729869033265,-500.0,0.00061986,120]
[340814941,1729869033275,-500.0,0.00061989,120]
[340814942,1729869033287,-520.70735404,0.00061989,120]
[340814943,1729869033296,-500.0,0.00061989,120]
[340814944,1729869033306,-300.0,0.00062,120]
[340814945,1729869033316,-500.0,0.00062163,120]
[340814946,1729869033326,-500.0,0.00062261,120]
[340814947,1729869033335,-582.20979357,0.00062263,120]
[340814948,1729869033345,-500.0,0.00062263,120]
[340814949,1729869033354,-507.31143631,0.00062281,120]
[340814950,1729869033363,-3053.1743,0.00062447,2]
[340814951,1729869033373,-375.0,0.00062489,14]
[340814952,1729869033499,-607.38572479,0.00062504,120]
[340814953,1729869033510,-500.0,0.00062537,120]
[340814954,1729869033520,-500.0,0.00062537,120]
[340814955,1729869033529,-500.0,0.00062537,120]
[340814956,1729869033540,-500.0,0.00062566,120]
[340814957,1729869033549,-807.62,0.00062592,10]
[340814958,1729869033559,-500.0,0.00062602,120]
[340814959,1729869033568,-252.7,0.00062736,2]
[340814960,1729869033579,-500.0,0.00062811,120]
[340814961,1729869033589,-2500.0,0.00062895,2]
[340814962,1729869033599,-500.0,0.00062982,120]
[340814963,1729869033608,-5038.4075264,0.00062995,2]
[340814964,1729869033691,-65380.53005268,0.00062995,2]
[340814968,1729869038283,-840.24976774,0.00062995,2]
[340814969,1729869038298,-2549.18415465,0.00062995,2]
[340814970,1729869038447,-1000.0,0.000523,8]
[340814971,1729869038457,-25277.58773903,0.00062995,2]
[340814977,1729869040534,-250.24063061,0.00062995,2]
[340814978,1729869040709,-663.80012889,0.00062995,2]
[340814979,1729869040719,-20.64985411,0.00063,30]
[340815023,1729869044338,-1326.10106172,0.00063,30]
[340815024,1729869046250,-48906.24908417,0.00063,30]
[340815025,1729869046260,-150.0,0.00063,120]
[340815026,1729869046270,-247.28554656,0.00063003,15]
[340815027,1729869046279,-177.55,0.00063003,30]
[340815028,1729869046288,-500.0,0.00063013,7]
[340815029,1729869046299,-500.0,0.00063013,7]
[340815030,1729869046308,-500.0,0.00063013,7]
[340815031,1729869046317,-500.0,0.00063013,7]
[340815032,1729869046327,-500.0,0.00063013,7]
[340815033,1729869046336,-209.36,0.00063013,7]
[340815034,1729869046345,-500.0,0.00063013,120]
[340815035,1729869046354,-500.0,0.00063013,120]
[340815036,1729869046363,-500.0,0.00063013,120]
[340815037,1729869046372,-500.0,0.00063013,120]
[340815038,1729869046381,-500.0,0.00063013,120]
[340815039,1729869046390,-500.0,0.00063013,120]
[340815040,1729869046399,-500.0,0.00063013,120]
[340815041,1729869046408,-500.0,0.00063013,120]
[340815042,1729869046417,-500.0,0.00063013,120]
[340815043,1729869046427,-500.0,0.00063013,120]
[340815044,1729869046436,-500.0,0.00063013,120]
[340815045,1729869046446,-296.34450121,0.00063013,120]
[340815046,1729869046455,-500.0,0.00063013,120]
[340815047,1729869046464,-500.0,0.00063013,120]
[340815048,1729869046474,-500.0,0.00063013,120]
[340815049,1729869046483,-300.27,0.00063013,120]
[340815050,1729869046492,-500.0,0.00063013,2]
[340815051,1729869046501,-500.0,0.00063013,2]
[340815052,1729869046511,-500.0,0.00063013,2]
[340815053,1729869046520,-500.0,0.00063013,2]
[340815054,1729869046529,-500.0,0.00063013,2]
[340815055,1729869046538,-500.0,0.00063013,2]
[340815057,1729869046549,-500.0,0.00063013,2]
[340815059,1729869046559,-500.0,0.00063013,2]
[340815061,1729869046567,-500.0,0.00063013,2]
[340815062,1729869046577,-500.0,0.00063013,2]
[340815063,1729869046590,-559.11149089,0.00063013,2]
[340815064,1729869046599,-500.0,0.00063013,120]
[340815065,1729869046608,-500.0,0.00063013,120]
[340815066,1729869046617,-500.0,0.00063013,120]
[340815068,1729869046627,-500.0,0.00063013,120]
[340815070,1729869046636,-500.0,0.00063013,120]
[340815072,1729869046645,-500.0,0.00063013,120]
[340815074,1729869046654,-500.0,0.00063013,120]
[340815075,1729869046667,-500.0,0.00063013,120]
[340815076,1729869046676,-500.0,0.00063013,120]
[340815077,1729869046686,-500.0,0.00063013,120]
[340815078,1729869046695,-500.0,0.00063013,120]
[340815079,1729869046704,-500.0,0.00063013,120]
[340815080,1729869046713,-500.0,0.00063013,120]
[340815081,1729869046723,-500.0,0.00063013,120]
[340815082,1729869046732,-500.0,0.00063013,120]
[340815083,1729869046741,-500.0,0.00063013,120]
[340815084,1729869046753,-500.0,0.00063013,120]
[340815085,1729869046763,-500.0,0.00063013,120]
[340815086,1729869046772,-500.0,0.00063013,120]
[340815087,1729869046782,-500.0,0.00063013,120]
[340815088,1729869046791,-500.0,0.00063013,120]
[340815089,1729869046803,-500.0,0.00063013,120]
[340815090,1729869046812,-500.0,0.00063013,120]
[340815091,1729869046822,-500.0,0.00063013,120]
[340815092,1729869046831,-500.0,0.00063013,120]
[340815093,1729869046841,-500.0,0.00063013,120]
[340815094,1729869046850,-500.0,0.00063013,120]
[340815095,1729869046860,-242.93,0.00063013,120]
[340815096,1729869046869,-770.11,0.00063013,120]
[340815097,1729869046878,-500.0,0.00063013,120]
[340815098,1729869046887,-500.0,0.00063013,120]
[340815099,1729869046896,-500.0,0.00063013,120]
[340815100,1729869046906,-500.0,0.00063013,120]
[340815101,1729869046915,-500.0,0.00063013,120]
[340815102,1729869046924,-500.0,0.00063013,120]
[340815103,1729869046935,-500.0,0.00063013,120]
[340815104,1729869046945,-500.0,0.00063013,120]
[340815105,1729869046955,-500.0,0.00063013,120]
[340815106,1729869046965,-500.0,0.00063013,120]
[340815107,1729869046974,-500.0,0.00063013,120]
[340815108,1729869046985,-500.0,0.00063013,120]
[340815109,1729869046996,-500.0,0.00063013,120]
[340815110,1729869047006,-500.0,0.00063013,120]
[340815111,1729869047015,-500.0,0.00063013,120]
[340815112,1729869047026,-500.0,0.00063013,120]
[340815113,1729869047036,-500.0,0.00063013,120]
[340815114,1729869047047,-500.0,0.00063013,120]
[340815115,1729869047057,-500.0,0.00063013,120]
[340815116,1729869047066,-327.6,0.00063013,120]
[340815117,1729869047075,-645.42560978,0.00063013,120]
[340815118,1729869047084,-500.0,0.00063013,120]
[340815119,1729869047094,-500.0,0.00063013,120]
[340815120,1729869047103,-500.0,0.00063013,120]
[340815121,1729869047114,-500.0,0.00063013,120]
[340815122,1729869047123,-500.0,0.00063013,120]
[340815123,1729869047133,-500.0,0.00063013,120]
[340815124,1729869047143,-500.0,0.00063013,120]
[340815125,1729869047152,-461.59064246,0.00063013,120]
[340815126,1729869047162,-500.0,0.00063013,120]
[340815127,1729869047172,-500.0,0.00063013,120]
[340815128,1729869047181,-500.0,0.00063013,120]
[340815129,1729869047190,-500.0,0.00063013,120]
[340815130,1729869047199,-188.35825834,0.00063013,120]
[340815131,1729869047208,-500.0,0.00063013,120]
[340815132,1729869047219,-500.0,0.00063013,120]
[340815133,1729869047228,-500.0,0.00063013,2]
[340815134,1729869047237,-500.0,0.00063013,120]
[340815135,1729869047246,-736.87,0.00063013,120]
[340815136,1729869047256,-500.0,0.00063013,120]
[340815137,1729869047265,-500.0,0.00063013,120]
[340815138,1729869047274,-500.0,0.00063013,55]
[340815139,1729869047283,-500.0,0.00063013,120]
[340815140,1729869047292,-374.20164675,0.00063013,120]
[340815141,1729869047305,-500.0,0.00063013,120]
[340815142,1729869047314,-628.02,0.00063013,120]
[340815143,1729869047323,-500.0,0.00063013,120]
[340815144,1729869047332,-500.0,0.00063013,120]
[340815145,1729869047341,-500.0,0.00063013,120]
[340815146,1729869047350,-500.0,0.00063013,120]
[340815147,1729869047359,-500.0,0.00063013,120]
[340815148,1729869047368,-604.34846427,0.00063013,120]
[340815149,1729869047378,-500.0,0.00063013,120]
[340815150,1729869047387,-384.43,0.00063013,120]
[340815151,1729869047396,-500.0,0.00063013,2]
[340815152,1729869047405,-500.0,0.00063013,2]
[340815153,1729869047415,-500.0,0.00063013,2]
[340815154,1729869047424,-500.0,0.00063013,2]
[340815155,1729869047433,-500.0,0.00063013,120]
[340815156,1729869047442,-500.0,0.00063013,2]
[340815157,1729869047451,-500.0,0.00063013,2]
[340815158,1729869047460,-500.0,0.00063013,2]
[340815159,1729869047470,-500.0,0.00063013,2]
[340815160,1729869047479,-500.0,0.00063013,2]
[340815161,1729869047489,-500.0,0.00063013,2]
[340815162,1729869047499,-500.0,0.00063013,2]
[340815163,1729869047508,-612.27998858,0.00063013,2]
[340815164,1729869047518,-500.0,0.00063013,120]
[340815165,1729869047527,-500.0,0.00063013,120]
[340815166,1729869047536,-500.0,0.00063013,120]
[340815167,1729869047545,-500.0,0.00063013,120]
[340815168,1729869047555,-500.0,0.00063013,120]
[340815169,1729869047564,-500.0,0.00063013,120]
[340815170,1729869047573,-500.0,0.00063013,120]
[340815171,1729869047585,-500.0,0.00063013,120]
[340815172,1729869047595,-500.0,0.00063013,120]
[340815173,1729869047604,-187.28155996,0.00063013,120]
[340815174,1729869047614,-500.0,0.00063013,120]
[340815175,1729869047623,-500.0,0.00063013,120]
[340815176,1729869047632,-500.0,0.00063013,120]
[340815177,1729869047641,-500.0,0.00063013,120]
[340815178,1729869047650,-500.0,0.00063013,120]
[340815179,1729869047658,-579.12292049,0.00063013,120]
[340815180,1729869047667,-215.10439895,0.00063013,120]
[340815181,1729869047677,-775.41,0.00063013,120]
[340815182,1729869047687,-1024.64,0.00063013,120]
[340815183,1729869047696,-808.75,0.00063013,120]
[340815184,1729869047706,-500.0,0.00063013,120]
[340815185,1729869047715,-500.0,0.00063013,120]
[340815186,1729869047724,-500.0,0.00063013,120]
[340815187,1729869047733,-500.0,0.00063013,120]
[340815188,1729869047743,-500.0,0.00063013,120]
[340815189,1729869047752,-500.0,0.00063013,120]
[340815190,1729869047761,-500.0,0.00063013,120]
[340815191,1729869047771,-225.27144755,0.00063013,120]
[340815192,1729869047780,-500.0,0.00063013,21]
[340815193,1729869047790,-500.0,0.00063013,120]
[340815194,1729869047801,-500.0,0.00063013,120]
[340815195,1729869047909,-500.0,0.00063013,120]
[340815196,1729869047919,-500.0,0.00063013,120]
[340815197,1729869047928,-500.0,0.00063013,120]
[340815198,1729869047938,-500.0,0.00063013,120]
[340815199,1729869047947,-500.0,0.00063013,120]
[340815200,1729869047956,-500.0,0.00063013,120]
[340815201,1729869047965,-500.0,0.00063013,120]
[340815202,1729869047974,-500.0,0.00063013,120]
[340815203,1729869047983,-500.0,0.00063013,120]
[340815204,1729869047992,-500.0,0.00063013,120]
[340815205,1729869048001,-500.0,0.00063013,120]
[340815206,1729869048010,-500.0,0.00063013,120]
[340815207,1729869048019,-500.0,0.00063013,120]
[340815208,1729869048029,-500.0,0.00063013,120]
[340815209,1729869048038,-500.0,0.00063013,120]
[340815210,1729869048047,-500.0,0.00063013,120]
[340815211,1729869048056,-671.69,0.00063013,120]
[340815212,1729869048066,-612.9,0.00063013,120]
[340815213,1729869048075,-500.0,0.00063013,120]
[340815214,1729869048084,-500.0,0.00063013,120]
[340815215,1729869048094,-511.0141471,0.00063013,120]
[340815216,1729869048104,-500.0,0.00063013,120]
[340815217,1729869048113,-500.0,0.00063013,120]
[340815218,1729869048122,-500.0,0.00063013,120]
[340815219,1729869048132,-280.91804519,0.00063013,120]
[340815220,1729869048141,-500.0,0.00063013,120]
[340815221,1729869048151,-500.0,0.00063013,120]
[340815222,1729869048160,-500.0,0.00063013,120]
[340815223,1729869048169,-1000.0,0.00063013,120]
[340815224,1729869048179,-500.0,0.00063013,120]
[340815225,1729869048188,-500.0,0.00063013,120]
[340815226,1729869048197,-500.0,0.00063013,7]
[340815227,1729869048207,-500.0,0.00063013,120]
[340815228,1729869048219,-558.83536151,0.00063013,120]
[340815229,1729869048228,-500.0,0.00063013,120]
[340815230,1729869048237,-537.84976081,0.00063013,120]
[340815231,1729869048246,-500.0,0.00063013,120]
[340815232,1729869048255,-415.08195481,0.00063013,120]
[340815233,1729869048265,-500.0,0.00063013,120]
[340815234,1729869048274,-500.0,0.00063013,120]
[340815235,1729869048283,-500.0,0.00063013,120]
[340815236,1729869048292,-431.4035501,0.00063013,120]
[340815237,1729869048307,-744.36,0.00063013,120]
[340815238,1729869048317,-166.67436774,0.00063013,120]
[340815239,1729869048327,-500.0,0.00063013,120]
[340815240,1729869048336,-500.0,0.00063013,120]
[340815241,1729869048346,-221.69403938,0.00063019,120]
[340815242,1729869048355,-247.28554656,0.00063075,15]
[340815243,1729869048364,-500.0,0.00063085,120]
[340815244,1729869048375,-668.5,0.00063094,120]
[340815245,1729869048384,-508.09,0.00063094,120]
[340815246,1729869048394,-610.76181573,0.00063195,120]
[340815247,1729869048403,-500.0,0.00063359,120]
[340815248,1729869048413,-500.0,0.00063479,120]
[340815249,1729869048422,-500.0,0.00063633,120]
[340815250,1729869048431,-500.0,0.00063868,120]
[340815251,1729869048440,-500.0,0.00063907,120]
[340815252,1729869048449,-411.89490563,0.00063972,120]
[340815253,1729869048458,-208.98167927,0.00063972,120]
[340815254,1729869048468,-308.63158487,0.0006398,2]
[340815255,1729869048477,-201.71252036,0.0006398,35]
[340815256,1729869048486,-2123.4128,0.0006398,120]
[340815257,1729869048495,-500.0,0.00063995,120]
[340815258,1729869048504,-500.0,0.00063999,120]
[340815259,1729869048513,-500.0,0.00063999,120]
[340815260,1729869048522,-500.0,0.00063999,120]
[340815261,1729869048532,-500.0,0.00063999,120]
[340815262,1729869048540,-494.57109312,0.00064061,15]
[340815263,1729869048550,-494.57109312,0.0006407,15]
[340815264,1729869048559,-494.57109312,0.00064071,15]
[340815265,1729869048569,-5046.67917008,0.00064071,13]
[340815266,1729869048623,-1377.77842926,0.00064071,13]
[340815267,1729869048640,-456.544716,0.00064071,13]
[340815268,1729869908296,1622857.88536694,0.00014,2]
[340815269,1729870084110,180587.75401967,0.00015,2]
[340815274,1729870122251,799.999999,0.00043117,30]
[340815284,1729870232547,-178.34,0.00015342,2]
[340815285,1729870232557,-150.0,0.00015482,2]
[340815286,1729870232567,-327.61324042,0.00018,2]
[340815287,1729870232577,-1039.21714736,0.00018,2]
[340815288,1729870232586,-300.0,0.00019725,2]
[340815289,1729870232595,-3980.82959196,0.0002495,2]
[340815295,1729870238606,-1013.14080275,0.0002495,2]
[340815296,1729870238617,-33844.19733986,0.0002495,2]
[340815297,1729870238627,-363.48026015,0.0003121,2]
[340815298,1729870238746,-5090.2505081,0.0003121,2]
[340815299,1729870238755,-167.78121987,0.00032877,2]
[340815300,1729870238765,-321.44104063,0.00034849,120]
[340815301,1729870238774,-7308.80255099,0.00043117,2]
[340815302,1729870238783,-5215.58527515,0.00043117,4]
[340815303,1729870238792,-18498.37564518,0.00043117,5]
[340815304,1729870238800,-30716.51157608,0.00043117,4]
[340815305,1729870238810,-6629.42920949,0.00043117,4]
[340815306,1729870238818,-5088.21867099,0.00043117,4]
[340815307,1729870238828,-515.45856071,0.00043117,14]
[340815308,1729870238837,-250.0,0.00050064,120]
[340815309,1729870238846,-263.29959396,0.0005087,11]
[340815310,1729870238855,-450804.28691463,0.0005088,2]
[340815312,1729870238864,-308.63158487,0.000518,2]
[340815314,1729870238874,-201.71252036,0.000519,24]
[340815316,1729870238883,-150.24,0.00052,2]
[340815318,1729870238892,-218.11,0.00052918,2]
[340815320,1729870238901,-571.1133374,0.00053,2]
[340815322,1729870238910,-155.95,0.00053291,120]
[340815324,1729870238919,-154.67394876,0.00053291,2]
[340815326,1729870238928,-64561.9700126,0.00053301,11]
[340815328,1729870238937,-442.6996362,0.0005331,2]
[340815330,1729870238946,-227744.0201191,0.00053311,5]
[340815331,1729870238955,-308.63158487,0.0005361,2]
[340815333,1729870238964,-450.74,0.000546,7]
[340815335,1729870238977,-5000.0,0.00054794,120]
[340815337,1729870238986,-5000.0,0.00054794,120]
[340815339,1729870238996,-5000.0,0.00054794,120]
[340815341,1729870239005,-218.11,0.00055182,2]
[340815343,1729870239015,-500.0,0.00055394,120]
[340815345,1729870239024,-308.63158487,0.0005542,2]
[340815347,1729870239033,-500.0,0.00055986,120]
[340815349,1729870239044,-500.0,0.00055988,120]
[340815351,1729870239053,-2501.13605099,0.00056941,120]
[340815353,1729870239063,-500.0,0.00057226,120]
[340815355,1729870239072,-308.63158487,0.0005723,2]
[340815357,1729870239081,-500.0,0.00057254,120]
[340815359,1729870239090,-375.62,0.000573,14]
[340815361,1729870239100,-218.11,0.00057446,2]
[340815363,1729870239109,-167.83,0.00057561,2]
[340815365,1729870239118,-500.0,0.00058378,13]
[340815367,1729870239127,-168.0,0.00058378,13]
[340815369,1729870239137,-7173.55222362,0.0005899,12]
[340815371,1729870239146,-188.7312293,0.00059,120]
[340815373,1729870239155,-218.11,0.00059709,2]
[340815374,1729870239164,-10000.0,0.0006,60]
[340815375,1729870239173,-4000.0,0.0006,120]
[340815376,1729870239182,-7173.55222362,0.00060295,12]
[340815377,1729870239191,-1000.0,0.00060305,30]
[340815378,1729870239205,-925.3,0.00060583,120]
[340815379,1729870239216,-250.0,0.0006064,120]
[340815380,1729870239225,-500.0,0.0006066,120]
[340815381,1729870239234,-500.0,0.00060872,120]
[340815382,1729870239243,-600.0,0.00061084,120]
[340815383,1729870239252,-400.0,0.00061238,120]
[340815384,1729870239262,-218.11,0.00061973,2]
[340815385,1729870239271,-10000.0,0.00062,62]
[340815386,1729870239280,-7173.55222362,0.00062488,13]
[340815387,1729870239289,-1882.3403603,0.00062498,120]
[340815388,1729870239298,-500.0,0.00062794,120]
[340815389,1729870239308,-414.81360777,0.00062885,120]
[340815390,1729870239317,-14347.1044472,0.0006289,13]
[340815391,1729870239326,-5876.3556,0.00062895,2]
[340815392,1729870239336,-30668.4108,0.000629,2]
[340815393,1729870239345,-1840.05432658,0.00062999,10]
[340815395,1729870239355,-7173.55222362,0.00063003,13]
[340815396,1729870239364,-154.32496774,0.00063013,120]
[340815398,1729870239373,-500.0,0.00063013,2]
[340815400,1729870239382,-500.0,0.00063013,2]
[340815402,1729870239391,-500.0,0.00063013,120]
[340815404,1729870239400,-500.0,0.00063013,2]
[340815407,1729870239410,-500.0,0.00063013,120]
[340815408,1729870239420,-625.67977798,0.00063013,120]
[340815410,1729870239429,-289.99507606,0.00063013,120]
[340815412,1729870239438,-500.0,0.00063013,120]
[340815414,1729870239450,-500.0,0.00063013,120]
[340815416,1729870239459,-500.0,0.00063013,120]
[340815418,1729870239469,-500.0,0.00063013,120]
[340815420,1729870239478,-500.0,0.00063013,120]
[340815422,1729870239487,-500.0,0.00063013,120]
[340815424,1729870239496,-500.0,0.00063013,120]
[340815426,1729870239506,-500.0,0.00063013,120]
[340815428,1729870239515,-500.0,0.00063013,120]
[340815430,1729870239524,-500.0,0.00063013,120]
[340815432,1729870239534,-500.0,0.00063013,120]
[340815434,1729870239543,-500.0,0.00063013,120]
[340815436,1729870239552,-500.0,0.00063013,120]
[340815438,1729870239561,-500.0,0.00063013,120]
[340815440,1729870239571,-500.0,0.00063013,120]
[340815442,1729870239580,-500.0,0.00063013,120]
[340815444,1729870239589,-500.0,0.00063013,120]
[340815446,1729870239598,-618.34091037,0.00063013,120]
[340815448,1729870239607,-269.62585949,0.00063014,40]
[340815450,1729870239616,-158.9,0.00063167,2]
[340815451,1729870239624,-1500.0,0.000633,120]
[340815453,1729870239633,-500.0,0.00063417,120]
[340815455,1729870239643,-503.77734307,0.00063517,120]
[340815457,1729870239652,-1242.77786576,0.000638,120]
[340815459,1729870239662,-2335.34614155,0.000638,30]
[340815462,1729870239672,-276.4528,0.0006388,2]
[340815464,1729870239681,-2500.0,0.0006388,2]
[340815466,1729870239692,-241.469,0.00063881,2]
[340815468,1729870239705,-7173.55222362,0.0006389,13]
[340815470,1729870239716,-500.0,0.00063899,2]
[340815472,1729870239729,-5870.3941296,0.000639,120]
[340815474,1729870239739,-207.27273084,0.000639,120]
[340815476,1729870239748,-7173.55222362,0.00063969,13]
[340815478,1729870239758,-107603.283354,0.0006397,13]
[340815480,1729870239767,-500.0,0.00063979,120]
[340815482,1729870239777,-500.0,0.00063979,120]
[340815484,1729870239787,-500.0,0.00063979,120]
[340815487,1729870239797,-497.80040001,0.00063979,120]
[340815489,1729870239807,-500.0,0.00063979,120]
[340815491,1729870239818,-500.0,0.00063979,120]
[340815493,1729870239827,-500.0,0.00063979,120]
[340815495,1729870239837,-500.0,0.00063979,120]
[340815497,1729870239846,-738.02,0.00063979,120]
[340815499,1729870239855,-500.0,0.00063979,120]
[340815501,1729870239865,-488.53616679,0.00063979,120]
[340815503,1729870239875,-500.0,0.00063979,120]
[340815505,1729870239884,-500.0,0.00063979,120]
[340815507,1729870239895,-706.17,0.00063979,120]
[340815509,1729870239903,-500.0,0.00063979,55]
[340815511,1729870239912,-500.0,0.00063979,120]
[340815513,1729870239922,-601.85,0.00063979,120]
[340815515,1729870239931,-500.0,0.00063979,120]
[340815517,1729870239940,-743.11,0.00063979,120]
[340815519,1729870239954,-775.05,0.00063979,120]
[340815521,1729870239963,-500.0,0.00063979,120]
[340815523,1729870239975,-500.0,0.00063979,120]
[340815525,1729870239984,-500.0,0.00063979,120]
[340815527,1729870239994,-240.25325967,0.00063979,120]
[340815529,1729870240003,-452.06753233,0.00063979,120]
[340815531,1729870240013,-500.0,0.00063979,21]
[340815533,1729870240023,-500.0,0.00063979,120]
[340815535,1729870240033,-500.0,0.00063979,120]
[340815536,1729870240042,-500.0,0.00063979,120]
[340815538,1729870240052,-500.0,0.00063979,120]
[340815540,1729870240061,-500.0,0.00063979,120]
[340815542,1729870240072,-500.0,0.00063979,120]
[340815544,1729870240081,-587.36,0.00063979,120]
[340815546,1729870240090,-500.0,0.00063979,120]
[340815548,1729870240099,-500.0,0.00063979,120]
[340815550,1729870240109,-643.7,0.00063979,120]
[340815552,1729870240118,-500.0,0.00063979,120]
[340815554,1729870240127,-500.0,0.00063979,120]
[340815556,1729870240136,-500.0,0.00063979,120]
[340815558,1729870240146,-500.0,0.00063979,120]
[340815560,1729870240156,-500.0,0.00063979,120]
[340815562,1729870240166,-500.0,0.00063979,120]
[340815564,1729870240176,-500.0,0.00063979,120]
[340815566,1729870240185,-500.0,0.00063979,120]
[340815568,1729870240194,-500.0,0.00063979,120]
[340815570,1729870240209,-1000.0,0.00063979,120]
[340815572,1729870240218,-500.0,0.00063979,120]
[340815574,1729870240227,-500.0,0.00063979,120]
[340815576,1729870240237,-500.0,0.00063979,7]
[340815578,1729870240247,-500.0,0.00063979,120]
[340815580,1729870240256,-500.0,0.00063979,120]
[340815582,1729870240266,-640.64,0.00063979,120]
[340815584,1729870240276,-500.0,0.00063979,120]
[340815586,1729870240285,-500.0,0.00063979,120]
[340815587,1729870240294,-551.457114,0.00063979,120]
[340815589,1729870240304,-500.0,0.00063979,120]
[340815591,1729870240313,-745.7,0.00063979,120]
[340815594,1729870240322,-5000.0,0.00063979,120]
[340815597,1729870240332,-12316.7257,0.0006398,2]
[340815600,1729870240341,-75476.44525906,0.0006398,2]
[340815603,1729870240355,-1502.49,0.0006398,2]
[340815607,1729870240370,-1370.78015088,0.0006398,2]
[340815616,1729870240673,-308.63158487,0.0005904,2]
[340815617,1729870240683,-166650.28459006,0.0006398,2]
[340815618,1729870240693,-500.0,0.0006398,120]
[340815619,1729870240705,-500.0,0.0006398,120]
[340815620,1729870240714,-500.0,0.0006398,120]
[340815621,1729870240722,-5000.0,0.0006398,120]
[340815622,1729870240731,-1665.8928,0.00063981,2]
[340815623,1729870240740,-31398.0265,0.00063981,2]
[340815624,1729870240749,-2061.1445,0.00063981,2]
[340815625,1729870240759,-50000.0,0.00064,54]
[340815626,1729870240771,-10000.0,0.00064,64]
[340815627,1729870240781,-600.0,0.00064,120]
[340815628,1729870240791,-241.0,0.00064,120]
[340815629,1729870240801,-6000.0,0.00064,120]
[340815630,1729870240810,-238.94142234,0.00064,120]
[340815631,1729870240820,-200.0,0.00064071,30]
[340815632,1729870240831,-500.0,0.00064079,120]
[340815633,1729870240841,-500.0,0.00064079,120]
[340815634,1729870240852,-500.0,0.00064079,120]
[340815636,1729870240861,-500.0,0.00064079,120]
[340815638,1729870240870,-500.0,0.00064079,120]
[340815639,1729870240880,-500.0,0.00064079,120]
[340815641,1729870240891,-500.0,0.00064079,120]
[340815643,1729870240900,-738.02,0.00064079,120]
[340815645,1729870240909,-500.0,0.00064079,120]
[340815647,1729870240919,-500.0,0.00064079,120]
[340815650,1729870240929,-500.0,0.00064079,120]
[340815652,1729870240938,-706.17,0.00064079,120]
[340815654,1729870240950,-500.0,0.00064079,55]
[340815656,1729870240960,-500.0,0.00064079,120]
[340815658,1729870240970,-601.85,0.00064079,120]
[340815660,1729870240982,-500.0,0.00064079,120]
[340815661,1729870240992,-743.11,0.00064079,120]
[340815663,1729870241001,-775.05,0.00064079,120]
[340815666,1729870241012,-500.0,0.00064079,120]
[340815668,1729870241023,-500.0,0.00064079,120]